{"text_format":"1","workbook":"xlsx","n_sheets":4,"sheets":["_options","Budsjettall","Plukklister","validering"],"not_rendered":{"charts":0,"images":2,"macros":1,"external_links":0,"defined_names":2,"comments":0,"pivot_tables":0},"unopened":[],"bounds":{"document_bytes":16777216,"sheet_cells":100000,"rows_first":2000,"rows_last":500,"rows_between":2000,"halvings":0,"cell_chars":16384,"cell_head_chars":4096},"cells_cut":0,"cells_raw":0,"read":"whole","date_system":"1900"}

{"sheet":"_options","index":0,"n_rows":16,"n_cols":1,"rows_kept":16,"cut":false,"hidden":true,"merged":[]}
["* This sheet is manipulated by the 'Options...' dialog and should not be changed by hand"]
[false]
[false]
[]
[false]
[5000]
[60]
[]
[false]
[10000]
[true]
[false]
[false]
[]
[false]
[false]

{"sheet":"Budsjettall","index":1,"n_rows":1000,"n_cols":11,"rows_kept":1000,"cut":false,"hidden":false,"merged":[[4,4,4,7]]}
[{"$f":"CONCATENATE(\"setdefault client=\",D7)","v":"setdefault client=UL"}]
[{"$f":"CONCATENATE(\"setdefault version=\",D8)","v":"setdefault version=BEVAAR2023"}]
[{"$f":"\"set transact_setup=\"&H8","v":"set transact_setup=AAR_DRIFT"}]
[{"$f":"CONCATENATE(\"setdefault year=\",H7)","v":"setdefault year=2023"}]
[null,"Budsjettmal for:",null,null,"BOTT"]
[]
[null,"Firmakode:",null,"UL",null,"Budsjettår:",null,2023]
[null,"Budsjettversjon:",null,"BEVAAR2023",null,"Oppsett",null,"AAR_DRIFT"]
[]
["update_columns planner","account","dim_1","dim_5","dim_2","dim_7","free_dim_1","autopost","profile","cur_amount","description"]
["*"]
[null,null,null,null,null,null,"Justerings","Auto-","Periodiserings"]
[null,"Konto","Koststed","Delprosjekt","Prosjekt","Arbeidspakke","kode","postering","nøkkel","Beløp","Beskrivelse"]
[{"$f":"IF(OR($B14=\"\",$C14=\"\",$D14=\"\",$E14=\"\",$J14=\"\"),\"\",\"update_data,visible\")","v":""},null,null,null,{"$f":"LEFT(D14,6)","v":""}]
[{"$f":"IF(OR($B15=\"\",$C15=\"\",$D15=\"\",$E15=\"\",$J15=\"\"),\"\",\"update_data,visible\")","v":""},null,null,null,{"$f":"LEFT(D15,6)","v":""}]
["",null,null,null,{"$f":"LEFT(D16,6)","v":""}]
["",null,null,null,""]
["",null,null,null,""]
["",null,null,null,""]
["",null,null,null,""]
["",null,null,null,""]
["",null,null,null,""]
["",null,null,null,""]
["",null,null,null,""]
["",null,null,null,{"$f":"LEFT(D25,6)","v":""}]
["",null,null,null,""]
["",null,null,null,""]
["",null,null,null,""]
["",null,null,null,""]
["",null,null,null,""]
["",null,null,null,""]
["",null,null,null,""]
["",null,null,null,""]
["",null,null,null,""]
["",null,null,null,""]
["",null,null,null,""]
["",null,null,null,""]
["",null,null,null,""]
["",null,null,null,""]
["",null,null,null,""]
["",null,null,null,""]
["",null,null,null,""]
["",null,null,null,""]
["",null,null,null,""]
["",null,null,null,""]
["",null,null,null,""]
["",null,null,null,""]
["",null,null,null,""]
["",null,null,null,""]
["",null,null,null,""]
["",null,null,null,""]
["",null,null,null,""]
["",null,null,null,""]
["",null,null,null,""]
["",null,null,null,""]
["",null,null,null,""]
["",null,null,null,""]
["",null,null,null,""]
["",null,null,null,""]
["",null,null,null,""]
["",null,null,null,""]
["",null,null,null,""]
["",null,null,null,""]
["",null,null,null,""]
["",null,null,null,""]
["",null,null,null,""]
["",null,null,null,""]
["",null,null,null,""]
["",null,null,null,""]
["",null,null,null,""]
["",null,null,null,""]
["",null,null,null,""]
["",null,null,null,""]
["",null,null,null,""]
["",null,null,null,""]
["",null,null,null,""]
["",null,null,null,""]
["",null,null,null,""]
[{"$f":"IF(OR($B79=\"\",$C79=\"\",$D79=\"\",$E79=\"\",$J79=\"\"),\"\",\"update_data,visible\")","v":""},null,null,null,""]
["",null,null,null,{"$f":"LEFT(D80,6)","v":""}]
["",null,null,null,""]
["",null,null,null,""]
["",null,null,null,""]
["",null,null,null,""]
["",null,null,null,""]
["",null,null,null,""]
["",null,null,null,""]
["",null,null,null,""]
["",null,null,null,""]
["",null,null,null,""]
["",null,null,null,""]
["",null,null,null,""]
["",null,null,null,""]
["",null,null,null,""]
["",null,null,null,""]
["",null,null,null,""]
["",null,null,null,""]
["",null,null,null,""]
["",null,null,null,""]
["",null,null,null,""]
["",null,null,null,""]
["",null,null,null,""]
["",null,null,null,""]
["",null,null,null,""]
["",null,null,null,""]
["",null,null,null,""]
["",null,null,null,""]
["",null,null,null,""]
["",null,null,null,""]
["",null,null,null,""]
["",null,null,null,""]
["",null,null,null,""]
["",null,null,null,""]
["",null,null,null,""]
["",null,null,null,""]
["",null,null,null,""]
["",null,null,null,""]
["",null,null,null,""]
["",null,null,null,""]
["",null,null,null,""]
["",null,null,null,""]
["",null,null,null,""]
["",null,null,null,""]
["",null,null,null,""]
["",null,null,null,""]
["",null,null,null,""]
["",null,null,null,""]
["",null,null,null,""]
["",null,null,null,""]
["",null,null,null,""]
["",null,null,null,""]
["",null,null,null,""]
["",null,null,null,""]
["",null,null,null,""]
["",null,null,null,""]
["",null,null,null,""]
["",null,null,null,""]
["",null,null,null,""]
["",null,null,null,""]
["",null,null,null,""]
["",null,null,null,""]
["",null,null,null,""]
[{"$f":"IF(OR($B143=\"\",$C143=\"\",$D143=\"\",$E143=\"\",$J143=\"\"),\"\",\"update_data,visible\")","v":""},null,null,null,""]
["",null,null,null,{"$f":"LEFT(D144,6)","v":""}]
["",null,null,null,""]
["",null,null,null,""]
["",null,null,null,""]
["",null,null,null,""]
["",null,null,null,""]
["",null,null,null,""]
["",null,null,null,""]
["",null,null,null,""]
["",null,null,null,""]
["",null,null,null,""]
["",null,null,null,""]
["",null,null,null,""]
["",null,null,null,""]
["",null,null,null,""]
["",null,null,null,""]
["",null,null,null,""]
["",null,null,null,""]
["",null,null,null,""]
["",null,null,null,""]
["",null,null,null,""]
["",null,null,null,""]
["",null,null,null,""]
["",null,null,null,""]
["",null,null,null,""]
["",null,null,null,""]
["",null,null,null,""]
["",null,null,null,""]
["",null,null,null,""]
["",null,null,null,""]
["",null,null,null,""]
["",null,null,null,""]
["",null,null,null,""]
["",null,null,null,""]
["",null,null,null,""]
["",null,null,null,""]
["",null,null,null,""]
["",null,null,null,""]
["",null,null,null,""]
["",null,null,null,""]
["",null,null,null,""]
["",null,null,null,""]
["",null,null,null,""]
["",null,null,null,""]
["",null,null,null,""]
["",null,null,null,""]
["",null,null,null,""]
["",null,null,null,""]
["",null,null,null,""]
["",null,null,null,""]
["",null,null,null,""]
["",null,null,null,""]
["",null,null,null,""]
["",null,null,null,""]
["",null,null,null,""]
["",null,null,null,""]
["",null,null,null,""]
["",null,null,null,""]
["",null,null,null,""]
["",null,null,null,""]
["",null,null,null,""]
["",null,null,null,""]
["",null,null,null,""]
[{"$f":"IF(OR($B207=\"\",$C207=\"\",$D207=\"\",$E207=\"\",$J207=\"\"),\"\",\"update_data,visible\")","v":""},null,null,null,""]
["",null,null,null,{"$f":"LEFT(D208,6)","v":""}]
["",null,null,null,""]
["",null,null,null,""]
["",null,null,null,""]
["",null,null,null,""]
["",null,null,null,""]
["",null,null,null,""]
["",null,null,null,""]
["",null,null,null,""]
["",null,null,null,""]
["",null,null,null,""]
["",null,null,null,""]
["",null,null,null,""]
["",null,null,null,""]
["",null,null,null,""]
["",null,null,null,""]
["",null,null,null,""]
["",null,null,null,""]
["",null,null,null,""]
["",null,null,null,""]
["",null,null,null,""]
["",null,null,null,""]
["",null,null,null,""]
["",null,null,null,""]
["",null,null,null,""]
["",null,null,null,""]
["",null,null,null,""]
["",null,null,null,""]
["",null,null,null,""]
["",null,null,null,""]
["",null,null,null,""]
["",null,null,null,""]
["",null,null,null,""]
["",null,null,null,""]
["",null,null,null,""]
["",null,null,null,""]
["",null,null,null,""]
["",null,null,null,""]
["",null,null,null,""]
["",null,null,null,""]
["",null,null,null,""]
["",null,null,null,""]
["",null,null,null,""]
["",null,null,null,""]
["",null,null,null,""]
["",null,null,null,""]
["",null,null,null,""]
["",null,null,null,""]
["",null,null,null,""]
["",null,null,null,""]
["",null,null,null,""]
["",null,null,null,""]
["",null,null,null,""]
["",null,null,null,""]
["",null,null,null,""]
["",null,null,null,""]
["",null,null,null,""]
["",null,null,null,""]
["",null,null,null,""]
["",null,null,null,""]
["",null,null,null,""]
["",null,null,null,""]
["",null,null,null,""]
[{"$f":"IF(OR($B271=\"\",$C271=\"\",$D271=\"\",$E271=\"\",$J271=\"\"),\"\",\"update_data,visible\")","v":""},null,null,null,""]
["",null,null,null,{"$f":"LEFT(D272,6)","v":""}]
["",null,null,null,""]
["",null,null,null,""]
["",null,null,null,""]
["",null,null,null,""]
["",null,null,null,""]
["",null,null,null,""]
["",null,null,null,""]
["",null,null,null,""]
["",null,null,null,""]
["",null,null,null,""]
["",null,null,null,""]
["",null,null,null,""]
["",null,null,null,""]
["",null,null,null,""]
["",null,null,null,""]
["",null,null,null,""]
["",null,null,null,""]
["",null,null,null,""]
["",null,null,null,""]
["",null,null,null,""]
["",null,null,null,""]
["",null,null,null,""]
["",null,null,null,""]
["",null,null,null,""]
["",null,null,null,""]
["",null,null,null,""]
["",null,null,null,""]
["",null,null,null,""]
["",null,null,null,""]
["",null,null,null,""]
["",null,null,null,""]
["",null,null,null,""]
["",null,null,null,""]
["",null,null,null,""]
["",null,null,null,""]
["",null,null,null,""]
["",null,null,null,""]
["",null,null,null,""]
["",null,null,null,""]
["",null,null,null,""]
["",null,null,null,""]
["",null,null,null,""]
["",null,null,null,""]
["",null,null,null,""]
["",null,null,null,""]
["",null,null,null,""]
["",null,null,null,""]
["",null,null,null,""]
["",null,null,null,""]
["",null,null,null,""]
["",null,null,null,""]
["",null,null,null,""]
["",null,null,null,""]
["",null,null,null,""]
["",null,null,null,""]
["",null,null,null,""]
["",null,null,null,""]
["",null,null,null,""]
["",null,null,null,""]
["",null,null,null,""]
["",null,null,null,""]
["",null,null,null,""]
[{"$f":"IF(OR($B335=\"\",$C335=\"\",$D335=\"\",$E335=\"\",$J335=\"\"),\"\",\"update_data,visible\")","v":""},null,null,null,""]
["",null,null,null,{"$f":"LEFT(D336,6)","v":""}]
["",null,null,null,""]
["",null,null,null,""]
["",null,null,null,""]
["",null,null,null,""]
["",null,null,null,""]
["",null,null,null,""]
["",null,null,null,""]
["",null,null,null,""]
["",null,null,null,""]
["",null,null,null,""]
["",null,null,null,""]
["",null,null,null,""]
["",null,null,null,""]
["",null,null,null,""]
["",null,null,null,""]
["",null,null,null,""]
["",null,null,null,""]
["",null,null,null,""]
["",null,null,null,""]
["",null,null,null,""]
["",null,null,null,""]
["",null,null,null,""]
["",null,null,null,""]
["",null,null,null,""]
["",null,null,null,""]
["",null,null,null,""]
["",null,null,null,""]
["",null,null,null,""]
["",null,null,null,""]
["",null,null,null,""]
["",null,null,null,""]
["",null,null,null,""]
["",null,null,null,""]
["",null,null,null,""]
["",null,null,null,""]
["",null,null,null,""]
["",null,null,null,""]
["",null,null,null,""]
["",null,null,null,""]
["",null,null,null,""]
["",null,null,null,""]
["",null,null,null,""]
["",null,null,null,""]
["",null,null,null,""]
["",null,null,null,""]
["",null,null,null,""]
["",null,null,null,""]
["",null,null,null,""]
["",null,null,null,""]
["",null,null,null,""]
["",null,null,null,""]
["",null,null,null,""]
["",null,null,null,""]
["",null,null,null,""]
["",null,null,null,""]
["",null,null,null,""]
["",null,null,null,""]
["",null,null,null,""]
["",null,null,null,""]
["",null,null,null,""]
["",null,null,null,""]
["",null,null,null,""]
[{"$f":"IF(OR($B399=\"\",$C399=\"\",$D399=\"\",$E399=\"\",$J399=\"\"),\"\",\"update_data,visible\")","v":""},null,null,null,""]
["",null,null,null,{"$f":"LEFT(D400,6)","v":""}]
["",null,null,null,""]
["",null,null,null,""]
["",null,null,null,""]
["",null,null,null,""]
["",null,null,null,""]
["",null,null,null,""]
["",null,null,null,""]
["",null,null,null,""]
["",null,null,null,""]
["",null,null,null,""]
["",null,null,null,""]
["",null,null,null,""]
["",null,null,null,""]
["",null,null,null,""]
["",null,null,null,""]
["",null,null,null,""]
["",null,null,null,""]
["",null,null,null,""]
["",null,null,null,""]
["",null,null,null,""]
["",null,null,null,""]
["",null,null,null,""]
["",null,null,null,""]
["",null,null,null,""]
["",null,null,null,""]
["",null,null,null,""]
["",null,null,null,""]
["",null,null,null,""]
["",null,null,null,""]
["",null,null,null,""]
["",null,null,null,""]
["",null,null,null,""]
["",null,null,null,""]
["",null,null,null,""]
["",null,null,null,""]
["",null,null,null,""]
["",null,null,null,""]
["",null,null,null,""]
["",null,null,null,""]
["",null,null,null,""]
["",null,null,null,""]
["",null,null,null,""]
["",null,null,null,""]
["",null,null,null,""]
["",null,null,null,""]
["",null,null,null,""]
["",null,null,null,""]
["",null,null,null,""]
["",null,null,null,""]
["",null,null,null,""]
["",null,null,null,""]
["",null,null,null,""]
["",null,null,null,""]
["",null,null,null,""]
["",null,null,null,""]
["",null,null,null,""]
["",null,null,null,""]
["",null,null,null,""]
["",null,null,null,""]
["",null,null,null,""]
["",null,null,null,""]
["",null,null,null,""]
[{"$f":"IF(OR($B463=\"\",$C463=\"\",$D463=\"\",$E463=\"\",$J463=\"\"),\"\",\"update_data,visible\")","v":""},null,null,null,""]
["",null,null,null,{"$f":"LEFT(D464,6)","v":""}]
["",null,null,null,""]
["",null,null,null,""]
["",null,null,null,""]
["",null,null,null,""]
["",null,null,null,""]
["",null,null,null,""]
["",null,null,null,""]
["",null,null,null,""]
["",null,null,null,""]
["",null,null,null,""]
["",null,null,null,""]
["",null,null,null,""]
["",null,null,null,""]
["",null,null,null,""]
["",null,null,null,""]
["",null,null,null,""]
["",null,null,null,""]
["",null,null,null,""]
["",null,null,null,""]
["",null,null,null,""]
["",null,null,null,""]
["",null,null,null,""]
["",null,null,null,""]
["",null,null,null,""]
["",null,null,null,""]
["",null,null,null,""]
["",null,null,null,""]
["",null,null,null,""]
["",null,null,null,""]
["",null,null,null,""]
["",null,null,null,""]
["",null,null,null,""]
["",null,null,null,""]
["",null,null,null,""]
["",null,null,null,""]
["",null,null,null,""]
["",null,null,null,""]
["",null,null,null,""]
["",null,null,null,""]
["",null,null,null,""]
["",null,null,null,""]
["",null,null,null,""]
["",null,null,null,""]
["",null,null,null,""]
["",null,null,null,""]
["",null,null,null,""]
["",null,null,null,""]
["",null,null,null,""]
["",null,null,null,""]
["",null,null,null,""]
["",null,null,null,""]
["",null,null,null,""]
["",null,null,null,""]
["",null,null,null,""]
["",null,null,null,""]
["",null,null,null,""]
["",null,null,null,""]
["",null,null,null,""]
["",null,null,null,""]
["",null,null,null,""]
["",null,null,null,""]
["",null,null,null,""]
[{"$f":"IF(OR($B527=\"\",$C527=\"\",$D527=\"\",$E527=\"\",$J527=\"\"),\"\",\"update_data,visible\")","v":""},null,null,null,""]
["",null,null,null,{"$f":"LEFT(D528,6)","v":""}]
["",null,null,null,""]
["",null,null,null,""]
["",null,null,null,""]
["",null,null,null,""]
["",null,null,null,""]
["",null,null,null,""]
["",null,null,null,""]
["",null,null,null,""]
["",null,null,null,""]
["",null,null,null,""]
["",null,null,null,""]
["",null,null,null,""]
["",null,null,null,""]
["",null,null,null,""]
["",null,null,null,""]
["",null,null,null,""]
["",null,null,null,""]
["",null,null,null,""]
["",null,null,null,""]
["",null,null,null,""]
["",null,null,null,""]
["",null,null,null,""]
["",null,null,null,""]
["",null,null,null,""]
["",null,null,null,""]
["",null,null,null,""]
["",null,null,null,""]
["",null,null,null,""]
["",null,null,null,""]
["",null,null,null,""]
["",null,null,null,""]
["",null,null,null,""]
["",null,null,null,""]
["",null,null,null,""]
["",null,null,null,""]
["",null,null,null,""]
["",null,null,null,""]
["",null,null,null,""]
["",null,null,null,""]
["",null,null,null,""]
["",null,null,null,""]
["",null,null,null,""]
["",null,null,null,""]
["",null,null,null,""]
["",null,null,null,""]
["",null,null,null,""]
["",null,null,null,""]
["",null,null,null,""]
["",null,null,null,""]
["",null,null,null,""]
["",null,null,null,""]
["",null,null,null,""]
["",null,null,null,""]
["",null,null,null,""]
["",null,null,null,""]
["",null,null,null,""]
["",null,null,null,""]
["",null,null,null,""]
["",null,null,null,""]
["",null,null,null,""]
["",null,null,null,""]
["",null,null,null,""]
[{"$f":"IF(OR($B591=\"\",$C591=\"\",$D591=\"\",$E591=\"\",$J591=\"\"),\"\",\"update_data,visible\")","v":""},null,null,null,""]
["",null,null,null,{"$f":"LEFT(D592,6)","v":""}]
["",null,null,null,""]
["",null,null,null,""]
["",null,null,null,""]
["",null,null,null,""]
["",null,null,null,""]
["",null,null,null,""]
["",null,null,null,""]
["",null,null,null,""]
["",null,null,null,""]
["",null,null,null,""]
["",null,null,null,""]
["",null,null,null,""]
["",null,null,null,""]
["",null,null,null,""]
["",null,null,null,""]
["",null,null,null,""]
["",null,null,null,""]
["",null,null,null,""]
["",null,null,null,""]
["",null,null,null,""]
["",null,null,null,""]
["",null,null,null,""]
["",null,null,null,""]
["",null,null,null,""]
["",null,null,null,""]
["",null,null,null,""]
["",null,null,null,""]
["",null,null,null,""]
["",null,null,null,""]
["",null,null,null,""]
["",null,null,null,""]
["",null,null,null,""]
["",null,null,null,""]
["",null,null,null,""]
["",null,null,null,""]
["",null,null,null,""]
["",null,null,null,""]
["",null,null,null,""]
["",null,null,null,""]
["",null,null,null,""]
["",null,null,null,""]
["",null,null,null,""]
["",null,null,null,""]
["",null,null,null,""]
["",null,null,null,""]
["",null,null,null,""]
["",null,null,null,""]
["",null,null,null,""]
["",null,null,null,""]
["",null,null,null,""]
["",null,null,null,""]
["",null,null,null,""]
["",null,null,null,""]
["",null,null,null,""]
["",null,null,null,""]
["",null,null,null,""]
["",null,null,null,""]
["",null,null,null,""]
["",null,null,null,""]
["",null,null,null,""]
["",null,null,null,""]
["",null,null,null,""]
[{"$f":"IF(OR($B655=\"\",$C655=\"\",$D655=\"\",$E655=\"\",$J655=\"\"),\"\",\"update_data,visible\")","v":""},null,null,null,""]
["",null,null,null,{"$f":"LEFT(D656,6)","v":""}]
["",null,null,null,""]
["",null,null,null,""]
["",null,null,null,""]
["",null,null,null,""]
["",null,null,null,""]
["",null,null,null,""]
["",null,null,null,""]
["",null,null,null,""]
["",null,null,null,""]
["",null,null,null,""]
["",null,null,null,""]
["",null,null,null,""]
["",null,null,null,""]
["",null,null,null,""]
["",null,null,null,""]
["",null,null,null,""]
["",null,null,null,""]
["",null,null,null,""]
["",null,null,null,""]
["",null,null,null,""]
["",null,null,null,""]
["",null,null,null,""]
["",null,null,null,""]
["",null,null,null,""]
["",null,null,null,""]
["",null,null,null,""]
["",null,null,null,""]
["",null,null,null,""]
["",null,null,null,""]
["",null,null,null,""]
["",null,null,null,""]
["",null,null,null,""]
["",null,null,null,""]
["",null,null,null,""]
["",null,null,null,""]
["",null,null,null,""]
["",null,null,null,""]
["",null,null,null,""]
["",null,null,null,""]
["",null,null,null,""]
["",null,null,null,""]
["",null,null,null,""]
["",null,null,null,""]
["",null,null,null,""]
["",null,null,null,""]
["",null,null,null,""]
["",null,null,null,""]
["",null,null,null,""]
["",null,null,null,""]
["",null,null,null,""]
["",null,null,null,""]
["",null,null,null,""]
["",null,null,null,""]
["",null,null,null,""]
["",null,null,null,""]
["",null,null,null,""]
["",null,null,null,""]
["",null,null,null,""]
["",null,null,null,""]
["",null,null,null,""]
["",null,null,null,""]
["",null,null,null,""]
[{"$f":"IF(OR($B719=\"\",$C719=\"\",$D719=\"\",$E719=\"\",$J719=\"\"),\"\",\"update_data,visible\")","v":""},null,null,null,""]
["",null,null,null,{"$f":"LEFT(D720,6)","v":""}]
["",null,null,null,""]
["",null,null,null,""]
["",null,null,null,""]
["",null,null,null,""]
["",null,null,null,""]
["",null,null,null,""]
["",null,null,null,""]
["",null,null,null,""]
["",null,null,null,""]
["",null,null,null,""]
["",null,null,null,""]
["",null,null,null,""]
["",null,null,null,""]
["",null,null,null,""]
["",null,null,null,""]
["",null,null,null,""]
["",null,null,null,""]
["",null,null,null,""]
["",null,null,null,""]
["",null,null,null,""]
["",null,null,null,""]
["",null,null,null,""]
["",null,null,null,""]
["",null,null,null,""]
["",null,null,null,""]
["",null,null,null,""]
["",null,null,null,""]
["",null,null,null,""]
["",null,null,null,""]
["",null,null,null,""]
["",null,null,null,""]
["",null,null,null,""]
["",null,null,null,""]
["",null,null,null,""]
["",null,null,null,""]
["",null,null,null,""]
["",null,null,null,""]
["",null,null,null,""]
["",null,null,null,""]
["",null,null,null,""]
["",null,null,null,""]
["",null,null,null,""]
["",null,null,null,""]
["",null,null,null,""]
["",null,null,null,""]
["",null,null,null,""]
["",null,null,null,""]
["",null,null,null,""]
["",null,null,null,""]
["",null,null,null,""]
["",null,null,null,""]
["",null,null,null,""]
["",null,null,null,""]
["",null,null,null,""]
["",null,null,null,""]
["",null,null,null,""]
["",null,null,null,""]
["",null,null,null,""]
["",null,null,null,""]
["",null,null,null,""]
["",null,null,null,""]
["",null,null,null,""]
[{"$f":"IF(OR($B783=\"\",$C783=\"\",$D783=\"\",$E783=\"\",$J783=\"\"),\"\",\"update_data,visible\")","v":""},null,null,null,""]
["",null,null,null,{"$f":"LEFT(D784,6)","v":""}]
["",null,null,null,""]
["",null,null,null,""]
["",null,null,null,""]
["",null,null,null,""]
["",null,null,null,""]
["",null,null,null,""]
["",null,null,null,""]
["",null,null,null,""]
["",null,null,null,""]
["",null,null,null,""]
["",null,null,null,""]
["",null,null,null,""]
["",null,null,null,""]
["",null,null,null,""]
["",null,null,null,""]
["",null,null,null,""]
["",null,null,null,""]
["",null,null,null,""]
["",null,null,null,""]
["",null,null,null,""]
["",null,null,null,""]
["",null,null,null,""]
["",null,null,null,""]
["",null,null,null,""]
["",null,null,null,""]
["",null,null,null,""]
["",null,null,null,""]
["",null,null,null,""]
["",null,null,null,""]
["",null,null,null,""]
["",null,null,null,""]
["",null,null,null,""]
["",null,null,null,""]
["",null,null,null,""]
["",null,null,null,""]
["",null,null,null,""]
["",null,null,null,""]
["",null,null,null,""]
["",null,null,null,""]
["",null,null,null,""]
["",null,null,null,""]
["",null,null,null,""]
["",null,null,null,""]
["",null,null,null,""]
["",null,null,null,""]
["",null,null,null,""]
["",null,null,null,""]
["",null,null,null,""]
["",null,null,null,""]
["",null,null,null,""]
["",null,null,null,""]
["",null,null,null,""]
["",null,null,null,""]
["",null,null,null,""]
["",null,null,null,""]
["",null,null,null,""]
["",null,null,null,""]
["",null,null,null,""]
["",null,null,null,""]
["",null,null,null,""]
["",null,null,null,""]
["",null,null,null,""]
[{"$f":"IF(OR($B847=\"\",$C847=\"\",$D847=\"\",$E847=\"\",$J847=\"\"),\"\",\"update_data,visible\")","v":""},null,null,null,""]
["",null,null,null,{"$f":"LEFT(D848,6)","v":""}]
["",null,null,null,""]
["",null,null,null,""]
["",null,null,null,""]
["",null,null,null,""]
["",null,null,null,""]
["",null,null,null,""]
["",null,null,null,""]
["",null,null,null,""]
["",null,null,null,""]
["",null,null,null,""]
["",null,null,null,""]
["",null,null,null,""]
["",null,null,null,""]
["",null,null,null,""]
["",null,null,null,""]
["",null,null,null,""]
["",null,null,null,""]
["",null,null,null,""]
["",null,null,null,""]
["",null,null,null,""]
["",null,null,null,""]
["",null,null,null,""]
["",null,null,null,""]
["",null,null,null,""]
["",null,null,null,""]
["",null,null,null,""]
["",null,null,null,""]
["",null,null,null,""]
["",null,null,null,""]
["",null,null,null,""]
["",null,null,null,""]
["",null,null,null,""]
["",null,null,null,""]
["",null,null,null,""]
["",null,null,null,""]
["",null,null,null,""]
["",null,null,null,""]
["",null,null,null,""]
["",null,null,null,""]
["",null,null,null,""]
["",null,null,null,""]
["",null,null,null,""]
["",null,null,null,""]
["",null,null,null,""]
["",null,null,null,""]
["",null,null,null,""]
["",null,null,null,""]
["",null,null,null,""]
["",null,null,null,""]
["",null,null,null,""]
["",null,null,null,""]
["",null,null,null,""]
["",null,null,null,""]
["",null,null,null,""]
["",null,null,null,""]
["",null,null,null,""]
["",null,null,null,""]
["",null,null,null,""]
["",null,null,null,""]
["",null,null,null,""]
["",null,null,null,""]
["",null,null,null,""]
[{"$f":"IF(OR($B911=\"\",$C911=\"\",$D911=\"\",$E911=\"\",$J911=\"\"),\"\",\"update_data,visible\")","v":""},null,null,null,""]
["",null,null,null,{"$f":"LEFT(D912,6)","v":""}]
["",null,null,null,""]
["",null,null,null,""]
["",null,null,null,""]
["",null,null,null,""]
["",null,null,null,""]
["",null,null,null,""]
["",null,null,null,""]
["",null,null,null,""]
["",null,null,null,""]
["",null,null,null,""]
["",null,null,null,""]
["",null,null,null,""]
["",null,null,null,""]
["",null,null,null,""]
["",null,null,null,""]
["",null,null,null,""]
["",null,null,null,""]
["",null,null,null,""]
["",null,null,null,""]
["",null,null,null,""]
["",null,null,null,""]
["",null,null,null,""]
["",null,null,null,""]
["",null,null,null,""]
["",null,null,null,""]
["",null,null,null,""]
["",null,null,null,""]
["",null,null,null,""]
["",null,null,null,""]
["",null,null,null,""]
["",null,null,null,""]
["",null,null,null,""]
["",null,null,null,""]
["",null,null,null,""]
["",null,null,null,""]
["",null,null,null,""]
["",null,null,null,""]
["",null,null,null,""]
["",null,null,null,""]
["",null,null,null,""]
["",null,null,null,""]
["",null,null,null,""]
["",null,null,null,""]
["",null,null,null,""]
["",null,null,null,""]
["",null,null,null,""]
["",null,null,null,""]
["",null,null,null,""]
["",null,null,null,""]
["",null,null,null,""]
["",null,null,null,""]
["",null,null,null,""]
["",null,null,null,""]
["",null,null,null,""]
["",null,null,null,""]
["",null,null,null,""]
["",null,null,null,""]
["",null,null,null,""]
["",null,null,null,""]
["",null,null,null,""]
["",null,null,null,""]
["",null,null,null,""]
[{"$f":"IF(OR($B975=\"\",$C975=\"\",$D975=\"\",$E975=\"\",$J975=\"\"),\"\",\"update_data,visible\")","v":""},null,null,null,""]
["",null,null,null,{"$f":"LEFT(D976,6)","v":""}]
["",null,null,null,""]
["",null,null,null,""]
["",null,null,null,""]
["",null,null,null,""]
["",null,null,null,""]
["",null,null,null,""]
["",null,null,null,""]
["",null,null,null,""]
["",null,null,null,""]
["",null,null,null,""]
["",null,null,null,""]
["",null,null,null,""]
["",null,null,null,""]
["",null,null,null,""]
["",null,null,null,""]
["",null,null,null,""]
["",null,null,null,""]
["",null,null,null,""]
["",null,null,null,""]
["",null,null,null,""]
["",null,null,null,""]
["",null,null,null,""]
["",null,null,null,""]
["",null,null,null,""]

{"sheet":"Plukklister","index":2,"n_rows":30,"n_cols":3,"rows_kept":30,"cut":false,"hidden":false,"merged":[]}
[]
["For å legge inn nye verdier i listene under:"]
["Verdiene må også være registrert i Unit4 før import. Dette gjøres av UiO sentralt"]
["Listene nedenfor er navngitt områder som benyttes i validering/nedtrekksmenuy i budsjettall-arkfanen. "]
["Det enkleste kan være å sett inn ny(e) rad(er) under den første blanke - og legge de nye verdiene der"]
[]
["Justeringskode",null,"Periodiseringsnøkkel"]
[]
["JUST1",null,"KD"]
["JUST10",null,"FLAT"]
["JUST11",null,"TERTIAL"]
["JUST12",null,"IB"]
["JUST13",null,"2HA_FLAT"]
["JUST14",null,"2HA_KD"]
["JUST15"]
["JUST16"]
["JUST17"]
["JUST18"]
["JUST19"]
["JUST2"]
["JUST20"]
["JUST3"]
["JUST4"]
["JUST5"]
["JUST6"]
["JUST7"]
["JUST8"]
["JUST9"]
["LVEKST_AAR0"]
["LVEKST_AAR1"]

{"sheet":"validering","index":3,"n_rows":18,"n_cols":1,"rows_kept":18,"cut":false,"hidden":true,"merged":[]}
["Autopostering"]
[]
["AFP_1"]
["AFP_2"]
["AFP_3"]
["AFP_4"]
["AFP_4A"]
["AFP_5"]
["AF_1"]
["AF_2"]
["AF_3"]
["AF_4"]
["AF_4A"]
["AF_5"]
["A_1"]
["A_2"]
["A_3"]
["A_4"]